bitfinex/quotes_SOLUSD_20260115
["timestamp","ask_amount","ask_price","bid_price","bid_amount"]
[1768449308268,0.70942873,143.23,143.2,0.71702827]
[1768449309901,7.6912494,143.23,143.2,0.71702827]
[1768449312573,0.39195349,143.22,143.19,0.71702827]
[1768449312773,0.39195349,143.22,143.19,4.80778791]
[1768449313008,7.69448861,143.23,143.2,0.71702827]
[1768449313382,13.43266794,143.25,143.2,0.71702827]
[1768449313714,20.41363285,143.25,143.22,0.71702827]
[1768449318216,7.37018743,143.24,143.21,4.80778791]
[1768449319420,6.98144076,143.24,143.22,0.71702827]
[1768449320217,6.74144076,143.24,143.22,0.71702827]
[1768449328335,0.66891569,143.23,143.2,0.66631279]
[1768449329226,7.65095797,143.23,143.2,0.66631279]
[1768449329828,0.66654715,143.21,143.18,0.66631279]
[1768449330717,13.38891569,143.22,143.18,0.66631279]
[1768449330900,12.72,143.22,143.2,0.66631279]
[1768449331098,7.65095797,143.23,143.21,0.66631279]
[1768449331414,6.98204228,143.23,143.21,0.66631279]
[1768449332924,7.41410368,143.23,143.2,4.09075964]
[1768449333093,7.41410368,143.23,143.2,4.75707243]
[1768449334948,7.41410368,143.23,143.2,0.66631279]
[1768449338609,6.98204228,143.23,143.21,0.66631279]
[1768449340129,6.98204228,143.23,143.21,4.75707243]
[1768449342136,7.41410368,143.23,143.21,4.09075964]
[1768449342443,7.41410368,143.23,143.2,4.75707243]
[1768449349127,7.41410368,143.23,143.2,0.66631279]
[1768449349332,0.66654715,143.22,143.2,0.66631279]
[1768449351229,7.64912735,143.22,143.2,0.66631279]
[1768449351432,7.64912735,143.22,143.19,4.77600514]
[1768449351946,0.43440625,143.21,143.18,0.6852455]
[1768449352259,0.43440625,143.21,143.18,4.77600514]
[1768449353047,0.43440625,143.21,143.19,0.6852455]
[1768449353354,7.4173232,143.21,143.19,0.6852455]
[1768449354163,6.98291695,143.21,143.19,0.6852455]
[1768449354369,6.98291695,143.21,143.19,4.77600514]
[1768449355336,7.64095868,143.22,143.19,4.77600514]
[1768449356343,0.44231409,143.21,143.18,4.77600514]
[1768449357342,7.42531886,143.21,143.18,4.77600514]
[1768449360139,7.42531886,143.21,143.18,0.6852455]
[1768449360338,7.42531886,143.21,143.18,4.77600514]
[1768449363164,0.65639698,143.2,143.17,0.6852455]
[1768449363670,0.65639698,143.2,143.17,3.30491619]
[1768449364772,0.65639698,143.2,143.17,0.6852455]
[1768449364964,0.65639698,143.2,143.17,3.30491619]
[1768449365170,0.65639698,143.2,143.18,2.61967069]
[1768449365771,7.64156421,143.21,143.18,3.30491619]
[1768449367554,0.44231409,143.2,143.18,3.30491619]
[1768449368575,0.44231409,143.2,143.18,2.61967069]
[1768449369973,0.44231409,143.2,143.17,0.6852455]
[1768449370171,0.44231409,143.2,143.17,3.30491619]
[1768449371269,0.44231409,143.2,143.18,2.61967069]
[1768449372458,0.44231409,143.2,143.17,3.30491619]
[1768449375980,0.65639698,143.19,143.16,0.7852455]
[1768449376176,0.65639698,143.19,143.16,0.1]
[1768449377274,0.65639698,143.19,143.16,3.40491619]
[1768449377685,0.65639698,143.19,143.16,0.7852455]
[1768449377996,7.64012898,143.19,143.16,0.1]
[1768449378159,0.44445492,143.18,143.16,0.1]
[1768449382099,7.42873684,143.18,143.16,0.1]
[1768449383500,6.98324022,143.2,143.16,0.82404578]
[1768449383882,6.98324022,143.2,143.16,3.44371647]
[1768449384083,0.67229493,143.19,143.16,3.44371647]
[1768449384690,7.65633692,143.19,143.16,3.44371647]
[1768449385807,0.42871595,143.18,143.16,3.44371647]
[1768449386609,0.42871595,143.18,143.09,4.62004279]
[1768449386811,0.32641879,143.15,143.07,15.33967069]
[1768449386984,0.32641879,143.15,143.1,2.61967069]
[1768449387179,0.32641879,143.15,143.11,12.72]
[1768449387384,0.32416735,143.13,143.11,12.72]
[1768449387696,0.32416735,143.13,143.1,2.61967069]
[1768449387899,6.98714365,143.12,143.1,2.61967069]
[1768449388405,39.47549807,143.12,143.1,2.61967069]
[1768449388793,39.47549807,143.12,143.09,3.34371647]
[1768449389288,39.47549807,143.12,143.09,0.72404578]
[1768449389489,39.47549807,143.12,143.09,3.34371647]
[1768449394214,39.47549807,143.12,143.09,2.61967069]
[1768449395611,40.147793,143.12,143.09,2.61967069]
[1768449395813,40.147793,143.12,143.1,2.61967069]
[1768449395996,14.88380871,143.11,143.1,2.61967069]
[1768449396403,14.88380871,143.11,143.1,3.34371647]
[1768449396716,14.88380871,143.11,143.1,2.61967069]
[1768449397496,14.88380871,143.11,143.09,2.61967069]
[1768449398105,14.88380871,143.11,143.06,6.99007409]
[1768449398307,14.88380871,143.11,143.09,2.61967069]
[1768449400020,12.41199366,143.11,143.09,2.61967069]
[1768449403615,7.65943858,143.12,143.1,2.61967069]
[1768449404115,7.65943858,143.12,143.08,0.39914671]
[1768449404321,7.65943858,143.12,143.1,2.61967069]
[1768449404899,16.8020057,143.12,143.1,2.61967069]
[1768449405616,0.67229493,143.1,143.08,2.61967069]
[1768449406506,7.65992682,143.11,143.08,0.72404578]
[1768449409723,16.80217007,143.12,143.09,0.72404578]
[1768449409926,9.81486205,143.12,143.09,3.34371647]
[1768449410226,9.14256712,143.12,143.1,3.34371647]
[1768449412829,9.14256712,143.12,143.1,0.72404578]
[1768449414126,0.65416774,143.11,143.08,0.70342156]
[1768449414311,18.74947675,143.12,143.07,0.70342156]
[1768449415909,80.43034594,143.17,143.12,0.70342156]
[1768449416217,0.65416774,143.15,143.12,0.70342156]
[1768449417128,16.78222511,143.16,143.12,0.70342156]
[1768449417715,0.099,143.12,143.05,0.70342156]
[1768449418016,13.1982142,143.11,143.06,0.70342156]
[1768449418227,20.18591181,143.11,143.06,0.70342156]
[1768449418620,22.8055825,143.11,143.06,0.70342156]
[1768449419631,9.14256712,143.1,143.06,0.70342156]
[1768449420531,16.13095158,143.1,143.06,0.70342156]
[1768449420739,0.45465798,143.09,143.06,0.70342156]
[1768449420931,3.07432867,143.09,143.06,0.70342156]
[1768449421515,7.44350863,143.09,143.06,0.70342156]
[1768449423115,9.14256712,143.08,143.06,0.70342156]
[1768449427358,5.60306694,143.08,143.06,0.70342156]
[1768449427653,3.92273586,143.08,143.06,0.70342156]
[1768449428254,2e-08,143.08,143.06,0.70342156]
[1768449433729,2e-08,143.08,143.06,4.80282516]
[1768449435849,2e-08,143.08,143.06,0.70342156]
[1768449436040,2e-08,143.08,143.06,4.80282516]
[1768449437468,7.44350863,143.09,143.06,4.80282516]
[1768449437642,7.38350864,143.09,143.06,4.80282516]
[1768449439347,19.72779513,143.11,143.08,0.70342156]
[1768449439865,19.72779513,143.11,143.1,4.80282516]
[1768449439866,1e-08,143.11,143.1,4.80282516]
[1768449440040,7.32849891,143.13,143.1,4.80282516]
[1768449440240,69.95480129,143.14,143.1,4.80282516]
[1768449441564,69.95480129,143.14,143.11,0.68117868]
[1768449442164,70.29664393,143.14,143.11,0.68117868]
[1768449442346,70.29664393,143.14,143.1,4.77033859]
[1768449442547,7.32769601,143.15,143.12,0.67093499]
[1768449443362,0.34184264,143.17,143.13,4.77033859]
[1768449444463,7.326567,143.17,143.13,4.77033859]
[1768449444854,0.099,143.16,143.13,4.77033859]
[1768449447345,0.34184264,143.17,143.13,4.77033859]
[1768449447645,0.34184264,143.17,143.13,0.67093499]
[1768449448370,0.099,143.16,143.13,4.77033859]
[1768449448566,7.32690163,143.17,143.13,4.77033859]
[1768449448766,7.32619267,143.18,143.15,0.67093499]
[1768449449067,0.099,143.17,143.14,4.77033859]
[1768449451049,7.32619267,143.18,143.15,0.67093499]
[1768449453653,6.98435003,143.18,143.15,0.67093499]
[1768449457279,7.08335003,143.18,143.15,0.67093499]
[1768449457485,6.38585328,143.18,143.15,0.67093499]
[1768449457781,6.28685328,143.18,143.15,0.67093499]
[1768449460280,6.28685328,143.18,143.16,0.67093499]
[1768449465291,6.98391608,143.19,143.17,0.67093499]
[1768449465972,7.08291608,143.19,143.16,0.67093499]
[1768449466487,7.08291608,143.19,143.16,4.77033859]
[1768449467687,7.0817526,143.21,143.17,0.67093499]
[1768449468387,0.33941421,143.2,143.17,0.67093499]
[1768449469185,7.32273283,143.2,143.17,0.67093499]
[1768449470493,7.32459524,143.21,143.17,0.67093499]
[1768449470891,0.099,143.2,143.17,0.67093499]
[1768449471788,0.10140414,143.18,143.13,0.67967625]
[1768449471985,0.10140414,143.18,143.14,0.67967625]
[1768449472691,7.08598207,143.18,143.14,0.67967625]
[1768449474789,0.33470137,143.15,143.12,0.67967625]
[1768449476805,0.34184264,143.16,143.12,0.67967625]
[1768449479002,24.44665252,143.17,143.13,4.77907985]
[1768449479196,6.98489378,143.17,143.14,0.67967625]
[1768449480185,7.08389378,143.17,143.14,0.67967625]
[1768449480386,0.33941421,143.16,143.13,0.67967625]
[1768449480986,6.98567935,143.15,143.12,0.67967625]
[1768449481300,7.08708349,143.15,143.12,0.67967625]
[1768449482381,6.98567935,143.15,143.12,0.67967625]
[1768449483202,6.98521546,143.16,143.13,0.67967625]
[1768449484408,4.0994036,143.18,143.12,4.0994036]
[1768449484409,7.08321567,143.18,143.15,0.67967625]
[1768449485287,20.06574919,143.19,143.15,0.67967625]
[1768449485687,19.72390655,143.19,143.16,0.67967625]
[1768449489399,19.82290655,143.19,143.16,0.67967625]
[1768449489603,19.82290655,143.19,143.16,3.29947957]
[1768449489907,19.82290655,143.19,143.16,0.67967625]
[1768449490107,19.82290655,143.19,143.16,3.29947957]
[1768449490316,19.82290655,143.19,143.16,0.67967625]
[1768449490611,12.74,143.19,143.16,3.29947957]
[1768449490785,6.98281877,143.21,143.17,0.67967625]
[1768449490987,6.98281877,143.21,143.18,0.67967625]
[1768449493395,20.06428686,143.22,143.18,0.67967625]
[1768449494417,7.08192939,143.21,143.18,0.67967625]
[1768449495614,6.98292939,143.21,143.18,0.67967625]
[1768449496934,6.98238294,143.22,143.2,3.29947957]
[1768449497222,6.98238294,143.22,143.2,0.67967625]
[1768449497919,6.98179554,143.23,143.2,3.29947957]
[1768449498104,70.15015165,143.24,143.21,0.67967625]
[1768449498308,70.15015165,143.24,143.21,3.29947957]
[1768449499117,63.16843624,143.24,143.21,3.29947957]
[1768449499332,63.16843624,143.24,143.22,0.67967625]
[1768449501933,0.2,143.24,143.23,0.68911389]
[1768449503122,24.52904985,143.27,143.24,0.70434745]
[1768449503332,24.52904985,143.27,143.24,0.67434745]
[1768449503537,24.52904985,143.27,143.22,2.61980332]
[1768449503841,0.56711421,143.26,143.22,2.61980332]
[1768449504052,0.56711421,143.26,143.21,2.61980332]
[1768449504645,0.56711421,143.26,143.22,2.61980332]
[1768449505240,7.54783565,143.26,143.22,3.32415077]
[1768449505436,0.10368114,143.25,143.22,2.61980332]
[1768449505637,6.98072144,143.26,143.22,0.70434745]
[1768449505843,7.55256408,143.26,143.23,0.70434745]
[1768449506352,6.98072144,143.26,143.23,0.70434745]
[1768449506639,6.97995424,143.27,143.25,0.70434745]
[1768449506825,7.55137658,143.28,143.25,0.70434745]
[1768449507737,24.99844287,143.29,143.25,0.70434745]
[1768449508131,6.97885407,143.29,143.26,0.70434745]
[1768449508328,7.07785407,143.29,143.26,0.70434745]
[1768449509446,6.97885407,143.29,143.26,0.70434745]
[1768449510241,7.1784653,143.3,143.26,0.67434745]
[1768449511331,7.1784653,143.3,143.25,2.61980332]
[1768449512048,7.1784653,143.3,143.26,0.70434745]
[1768449512249,7.77527951,143.3,143.26,0.70434745]
[1768449512629,7.2774653,143.3,143.26,0.70434745]
[1768449515032,0.10397814,143.28,143.24,0.70434745]
[1768449515342,2.72378146,143.28,143.24,0.70434745]
[1768449515545,0.59188585,143.27,143.24,0.70434745]
[1768449516446,0.10885722,143.26,143.22,0.70434745]
[1768449516652,0.10885722,143.26,143.23,0.70434745]
[1768449517027,6.97993081,143.27,143.23,0.70434745]
[1768449522860,7.07893081,143.27,143.23,0.70434745]
[1768449526761,7.58155345,143.28,143.23,0.70434745]
[1768449527961,0.099,143.27,143.23,0.70434745]
[1768449528863,0.099,143.27,143.24,0.70434745]
[1768449529065,7.07900665,143.27,143.24,0.70434745]
[1768449529239,0.59681421,143.26,143.22,0.70434745]
[1768449529938,0.10397814,143.25,143.22,0.70434745]
[1768449530144,0.10397814,143.25,143.21,2.61980332]
[1768449530145,0.10397814,143.25,143.21,0.70434745]
[1768449530649,0.10397814,143.25,143.22,0.723675]
[1768449531458,7.08495174,143.25,143.22,0.723675]
[1768449532157,0.59188585,143.24,143.21,0.723675]
[1768449532567,7.58281624,143.25,143.21,0.723675]
[1768449539180,6.98052344,143.26,143.22,0.723675]
[1768449539355,7.07834115,143.28,143.24,0.723675]
[1768449541543,20.30084271,143.29,143.25,0.723675]
[1768449541740,20.30084271,143.29,143.26,0.723675]
[1768449541943,20.30084271,143.29,143.26,0.693675]
[1768449542166,20.30084271,143.29,143.26,0.663675]
[1768449542642,19.69900007,143.29,143.26,0.663675]
[1768449542846,12.72,143.29,143.26,0.663675]
[1768449543746,70.80905628,143.3,143.26,0.663675]
[1768449546074,7.84062004,143.3,143.26,0.663675]
[1768449546374,10.46042336,143.3,143.26,0.663675]
[1768449546974,7.84062004,143.3,143.26,0.663675]
[1768449547277,10.46042336,143.3,143.26,0.663675]
[1768449547570,7.84062004,143.3,143.26,0.663675]
[1768449547777,10.46042336,143.3,143.26,0.663675]
[1768449548361,7.64111333,143.29,143.25,0.723675]
[1768449550276,11.72958363,143.29,143.25,0.723675]
[1768449550453,7.64111333,143.29,143.25,0.723675]
[1768449552081,6.97927069,143.29,143.25,0.723675]
[1768449553884,6.97927069,143.29,143.26,0.723675]
[1768449555760,0.65069779,143.28,143.25,0.723675]
[1768449555988,0.65069779,143.28,143.22,0.723675]
[1768449556195,0.1100334,143.27,143.22,0.723675]
[1768449556398,4.75031294,143.28,143.23,0.723675]
[1768449556690,37.80824851,143.29,143.25,0.723675]
[1768449556863,19.69927069,143.29,143.25,0.723675]
[1768449561480,0.65621421,143.28,143.25,0.723675]
[1768449561682,0.65621421,143.28,143.22,0.67581019]
[1768449561683,0.10457214,143.27,143.22,0.67581019]
[1768449562367,6.97982829,143.27,143.22,4.76428049]
[1768449562568,4.74468451,143.26,143.21,0.66007737]
[1768449563787,7.08537493,143.25,143.21,0.66007737]
[1768449566696,6.98080279,143.25,143.21,0.66007737]
[1768449567294,7.07980279,143.25,143.21,0.66007737]
[1768449567892,6.98080279,143.25,143.21,4.74854767]
[1768449568193,6.98080279,143.25,143.22,0.66007737]
[1768449568888,0.10457214,143.24,143.2,0.66007737]
[1768449569193,7.64264543,143.25,143.21,0.66007737]
[1768449569595,6.97934115,143.28,143.24,0.66007737]
[1768449569802,0.66184264,143.29,143.26,0.66007737]
[1768449569803,6.97903553,143.29,143.26,0.66007737]
[1768449570298,6.97903553,143.29,143.26,0.63007737]
[1768449572175,7.84036681,143.3,143.26,0.63007737]
[1768449573399,7.17852417,143.3,143.26,0.63007737]
[1768449574683,0.2,143.3,143.27,0.66007737]
[1768449576308,0.2,143.3,143.29,0.66007737]
[1768449576484,0.2,143.3,143.29,0.63007737]
[1768449577200,12.92,143.33,143.28,11.06767539]
[1768449577804,13.59911277,143.33,143.28,11.06767539]
[1768449578183,13.59911277,143.33,143.28,11.03767539]
[1768449578383,13.59911277,143.33,143.29,0.66007737]
[1768449580306,13.59911277,143.33,143.29,4.74854767]
[1768449581714,20.5760528,143.33,143.3,0.66007737]
[1768449581888,19.89694003,143.33,143.3,0.66007737]
[1768449582308,20.23281017,143.33,143.3,0.66007737]
[1768449587711,19.89694003,143.33,143.3,0.66007737]
[1768449588095,20.5760528,143.33,143.3,0.66007737]
[1768449589102,7.8560528,143.33,143.3,0.66007737]
[1768449590023,0.33930257,143.32,143.29,0.66007737]
[1768449592909,7.31671078,143.32,143.29,0.66007737]
[1768449597326,0.65712256,143.31,143.28,0.68959267]
[1768449597527,7.63453077,143.32,143.28,0.68959267]
[1768449600432,7.63453077,143.32,143.26,6.98021016]
[1768449600433,0.65416207,143.3,143.27,0.68959267]
[1768449601607,7.63504347,143.31,143.27,0.68959267]
[1768449602313,0.65416207,143.29,143.25,0.68959267]
[1768449602508,0.65416207,143.29,143.26,0.68959267]
[1768449602710,7.63520136,143.31,143.26,0.68959267]
[1768449602922,7.63520136,143.31,143.27,0.68959267]
[1768449603944,0.65416207,143.29,143.25,0.68959267]
[1768449604450,0.65416207,143.29,143.23,7.67126427]
[1768449604632,0.36400376,143.28,143.24,0.68959267]
[1768449604818,0.36687632,143.26,143.23,0.68959267]
[1768449605022,0.36687632,143.26,143.22,0.68959267]
[1768449605535,0.36969173,143.24,143.2,0.68959267]
[1768449605920,7.35127013,143.24,143.2,0.68959267]
[1768449606541,0.6456294,143.23,143.19,54.45406877]
[1768449607524,0.6456294,143.23,143.19,53.7644761]
[1768449607723,0.54289762,143.2,143.16,0.68959267]
[1768449607936,7.52658578,143.2,143.16,0.68959267]
[1768449608143,0.099,143.19,143.14,0.68959267]
[1768449608444,0.53845864,143.18,143.14,0.68959267]
[1768449608950,0.53410799,143.16,143.12,0.68959267]
[1768449609125,4.62257829,143.16,143.12,0.68959267]
[1768449609326,0.53410799,143.16,143.12,0.68959267]
[1768449609525,0.10770173,143.15,143.1,0.68959267]
[1768449609750,2.62160424,143.15,143.1,0.68959267]
[1768449610134,9.60777162,143.14,143.1,0.68959267]
[1768449610534,6.98616738,143.14,143.1,0.68959267]
[1768449612227,0.43519589,143.17,143.12,0.68959267]
[1768449612434,0.43519589,143.17,143.13,0.68959267]
[1768449612645,0.43519589,143.17,143.12,0.68959267]
[1768449612861,0.43519589,143.17,143.12,3.31119691]
[1768449613158,0.43519589,143.17,143.13,3.31119691]
[1768449613533,7.41999181,143.17,143.13,0.68959267]
[1768449613923,12.72,143.18,143.14,0.68959267]
[1768449614152,0.43519589,143.19,143.15,0.68959267]
[1768449614668,7.41895683,143.19,143.15,0.68959267]
[1768449616629,7.41895683,143.19,143.14,2.62160424]
[1768449617547,0.65712256,143.18,143.14,2.62160424]
[1768449617940,12.72,143.2,143.12,24.45500278]
[1768449618140,12.72,143.2,143.16,2.62160424]
[1768449618346,19.69303203,143.22,143.16,2.62160424]
[1768449618550,0.56198934,143.21,143.16,0.68959267]
[1768449618849,3.18359358,143.21,143.16,0.68959267]
[1768449619455,0.65617122,143.21,143.17,0.68959267]
[1768449619839,0.65617122,143.21,143.16,0.68959267]
[1768449620830,0.65617122,143.21,143.16,3.31119691]
[1768449621233,0.65617122,143.21,143.17,0.69457699]
[1768449623043,7.64256647,143.21,143.16,0.66931168]
[1768449623351,0.65957431,143.21,143.17,0.66931168]
[1768449623665,23.95628626,143.22,143.18,0.66931168]
[1768449623833,0.65857419,143.21,143.18,0.66931168]
[1768449624639,26.5778905,143.22,143.18,0.66931168]
[1768449625264,0.65857419,143.21,143.18,0.66931168]
[1768449625438,0.65857419,143.21,143.17,0.66931168]
[1768449625842,0.65857419,143.21,143.17,10.27555355]
[1768449626250,0.65857419,143.21,143.18,0.66931168]
[1768449627570,17.07387954,143.22,143.18,0.66931168]
[1768449631641,24.05617304,143.22,143.18,0.66931168]
[1768449631850,26.67777728,143.22,143.18,0.66931168]
[1768449632165,0.5595621,143.21,143.17,0.66931168]
[1768449632359,3.18116634,143.21,143.17,0.66931168]
[1768449632969,0.5595621,143.21,143.17,0.66931168]
[1768449634169,0.65857419,143.2,143.15,10.27642491]
[1768449634571,0.65857419,143.2,143.16,0.66931168]
[1768449634954,0.65857419,143.2,143.17,0.66931168]
[1768449635554,0.65957431,143.21,143.17,0.66931168]
[1768449636274,0.65957431,143.21,143.17,7.65392555]
[1768449636478,0.65957431,143.21,143.18,0.66931168]
[1768449636864,0.65957431,143.21,143.17,7.65392555]
[1768449637790,0.65957431,143.21,143.17,0.66931168]
[1768449639574,0.65857419,143.19,143.15,0.66931168]
[1768449640085,3.28017843,143.19,143.15,0.66931168]
[1768449640380,0.65857419,143.19,143.15,0.66931168]
[1768449641375,0.65957431,143.2,143.16,0.66931168]
[1768449642084,0.59957432,143.2,143.16,0.66931168]
[1768449643283,9.60531992,143.2,143.16,0.66931168]
[1768449644102,10.26489423,143.2,143.16,0.66931168]
[1768449644394,0.50016211,143.19,143.16,0.66931168]
[1768449644568,7.48396498,143.19,143.15,0.66931168]
[1768449647200,10.10556922,143.19,143.15,0.66931168]
[1768449647490,7.48396498,143.19,143.15,0.66931168]
[1768449649685,6.98340127,143.2,143.15,0.66931168]
[1768449649878,7.48356338,143.2,143.15,0.66931168]
[1768449653002,10.32149529,143.21,143.16,0.67842143]
[1768449653294,7.69989105,143.21,143.16,0.67842143]
[1768449654193,0.44335994,143.2,143.16,0.67842143]
[1768449654501,7.42666629,143.2,143.16,0.67842143]
[1768449657786,19.75285971,143.22,143.17,0.67842143]
[1768449658384,0.44335994,143.21,143.17,0.67842143]
[1768449661591,16.41430523,143.22,143.2,0.67842143]
[1768449665002,16.41430523,143.22,143.2,3.30002567]
[1768449665188,16.41430523,143.22,143.21,0.67842143]
[1768449667703,14.5790938,143.22,143.2,9.60482686]
[1768449667892,14.5790938,143.22,143.21,2.62160424]
[1768449670115,14.5790938,143.22,143.21,2.59160424]
[1768449670487,0.71695024,143.23,143.21,2.59160424]
[1768449670689,6.98094805,143.25,143.22,2.62160424]
[1768449670690,7.69789829,143.25,143.22,2.62160424]
[1768449671419,0.71695024,143.25,143.22,4.09003319]
[1768449671819,0.71695024,143.25,143.21,4.09003319]
[1768449672018,0.71695024,143.25,143.22,4.09003319]
[1768449672324,0.71695024,143.26,143.23,4.09003319]
[1768449673217,0.71695024,143.27,143.23,4.09003319]
[1768449674515,0.71695024,143.27,143.23,11.07133243]
[1768449675018,0.71695024,143.28,143.24,4.09003319]
[1768449675519,0.71695024,143.28,143.23,11.07133243]
[1768449676129,0.71695024,143.28,143.24,4.09003319]
[1768449678104,0.71695024,143.28,143.23,4.09003319]
[1768449678590,0.71695024,143.28,143.23,11.07145893]
[1768449679500,7.69607092,143.29,143.24,4.09003319]
[1768449680008,0.71695024,143.28,143.24,11.07122756]
[1768449682416,0.71695024,143.28,143.24,4.09003319]
[1768449682844,0.71695024,143.28,143.23,11.07170947]
[1768449683729,0.71695024,143.28,143.21,4.09003319]
[1768449683730,0.68648706,143.25,143.21,4.09003319]
[1768449684146,0.68648706,143.25,143.22,4.09003319]
[1768449686711,0.68648706,143.26,143.22,4.09003319]
[1768449687541,0.68648706,143.26,143.23,4.09003319]
[1768449687738,0.68648706,143.27,143.23,4.09003319]
[1768449687942,0.68648706,143.27,143.24,4.09003319]
[1768449688240,0.68648706,143.29,143.26,4.09003319]
[1768449690138,12.27913268,143.31,143.26,4.09003319]
[1768449690358,0.68648706,143.3,143.26,4.09003319]
[1768449691032,0.68648706,143.3,143.25,6.98063375]
[1768449691216,0.68648706,143.3,143.26,4.09003319]
[1768449692425,12.27913268,143.31,143.27,4.09003319]
[1768449692622,5.30117242,143.31,143.27,4.09003319]
[1768449692829,0.68648706,143.3,143.27,4.09003319]
[1768449693336,0.68648706,143.3,143.26,6.98027032]
[1768449693540,0.68648706,143.3,143.27,4.09003319]
[1768449694741,0.68648706,143.32,143.27,11.06976828]
[1768449696047,7.66397478,143.32,143.27,6.97973509]
[1768449696253,0.68648706,143.3,143.26,12.72]
[1768449696455,0.68648706,143.3,143.27,4.09003319]
[1768449697130,0.68648706,143.3,143.26,23.79032752]
[1768449697628,0.68648706,143.3,143.27,4.09003319]
[1768449697867,0.68648706,143.3,143.26,23.79032752]
[1768449700252,0.68648706,143.3,143.28,4.09003319]
[1768449701144,0.68648706,143.3,143.27,4.09003319]
[1768449701751,0.68648706,143.3,143.27,11.06967509]
[1768449704850,0.68648706,143.32,143.28,4.09003319]
[1768449705854,7.8635617,143.33,143.29,4.09003319]
[1768449706229,0.68648706,143.32,143.29,4.09003319]
[1768449707126,0.2,143.33,143.29,4.09003319]
[1768449707331,0.2,143.33,143.3,4.09003319]
[1768449707835,0.88648706,143.33,143.3,4.09003319]
[1768449710657,0.88648706,143.33,143.29,11.06864136]
[1768449713239,0.71782985,143.32,143.26,17.45006353]
[1768449713554,0.71782985,143.32,143.29,4.09003319]
[1768449713760,0.91782985,143.33,143.29,11.06886688]
[1768449713934,0.91782985,143.33,143.3,4.09003319]
[1768449714137,0.91782985,143.33,143.31,4.09003319]
[1768449714348,0.2,143.33,143.31,4.06003319]
[1768449714758,0.2,143.33,143.32,4.09003319]
[1768449714956,0.2,143.33,143.32,4.06003319]
[1768449716062,0.2,143.33,143.31,4.09003319]
[1768449716248,0.91782985,143.33,143.3,23.78809161]
[1768449717467,0.2,143.33,143.3,23.78809161]
[1768449717658,0.2,143.33,143.31,4.09003319]
[1768449718159,0.2,143.34,143.32,4.09003319]
[1768449720236,0.2,143.34,143.31,6.97762244]
[1768449720445,0.91782985,143.35,143.3,19.99818501]
[1768449720446,7.17595495,143.35,143.3,19.99818501]
[1768449720664,7.17595495,143.35,143.3,24.0882182]
[1768449720665,11.26598814,143.35,143.3,24.0882182]
[1768449721051,11.26598814,143.35,143.3,23.7882182]
[1768449722163,11.26598814,143.35,143.3,19.69818501]
[1768449722472,0.71782985,143.33,143.29,6.97877459]
[1768449722762,0.71782985,143.33,143.29,7.27877459]
[1768449722946,0.71782985,143.33,143.29,11.36880778]
[1768449724568,0.71782985,143.34,143.3,11.36832864]
[1768449724743,0.71782985,143.34,143.31,0.3]
[1768449725271,0.71782985,143.34,143.31,4.39003319]
[1768449725762,0.2,143.35,143.33,4.09003319]
[1768449725961,0.2,143.35,143.32,0.3]
[1768449726161,0.2,143.35,143.33,4.09003319]
[1768449726362,0.61782985,143.36,143.33,4.09003319]
[1768449726544,0.61782985,143.36,143.32,11.36723834]
[1768449726740,63.16843624,143.38,143.34,4.09003319]
[1768449726969,0.2,143.38,143.34,4.09003319]
[1768449727360,0.2,143.38,143.33,0.4]
[1768449727565,0.2,143.38,143.34,4.09003319]
[1768449727879,0.2,143.38,143.35,4.09003319]
[1768449728266,0.2,143.38,143.37,4.09003319]
[1768449728460,0.91782985,143.38,143.36,4.09003319]
[1768449728668,0.91782985,143.38,143.36,11.06522804]
[1768449728965,0.91782985,143.38,143.34,17.84068857]
[1768449728966,0.71782985,143.37,143.34,11.06636065]
[1768449731349,0.71782985,143.37,143.35,2.61320097]
[1768449731553,0.2,143.38,143.36,2.61320097]
[1768449731757,0.2,143.38,143.37,2.61320097]
[1768449731950,0.91782985,143.39,143.37,2.61320097]
[1768449734172,0.91782985,143.39,143.38,2.61320097]
[1768449734372,0.91782985,143.39,143.37,9.58815481]
[1768449735578,0.2,143.39,143.37,9.58815481]
[1768449735787,0.2,143.41,143.38,3.01320097]
[1768449735962,0.2,143.41,143.4,2.61320097]
[1768449736479,0.91782985,143.42,143.4,2.61320097]
[1768449736978,0.2,143.43,143.41,2.61320097]
[1768449738056,0.2,143.43,143.4,9.78656828]
[1768449738255,0.2,143.43,143.41,2.61320097]
[1768449739275,0.71782985,143.42,143.38,7.658321]
[1768449739472,0.71782985,143.42,143.38,10.27152197]
[1768449740179,2.81320097,143.43,143.38,10.27152197]
[1768449740180,0.2,143.43,143.39,0.68384758]
[1768449740480,0.81782985,143.43,143.39,3.29704855]
[1768449741282,0.81782985,143.43,143.39,10.27092549]
[1768449742783,0.81782985,143.43,143.4,0.65416181]
[1768449743880,0.2,143.43,143.4,0.65416181]
[1768449745487,0.299,143.43,143.39,10.24123972]
[1768449747579,0.2,143.43,143.41,3.26736278]
[1768449747888,0.2,143.44,143.43,0.65416181]